bitfinex/quotes_ETHUSD_20230116
["timestamp","ask_amount","ask_price","bid_price","bid_amount"]
[1673893191137,12.30963905,1558.8,1558.7,0.11113794]
[1673893192916,5.89444905,1558.8,1558.7,0.11113794]
[1673893193164,0.4813,1558.9,1558.7,1.14813794]
[1673893193520,16.17953165,1559.0,1558.7,1.14813794]
[1673893193521,2.14244675,1559.0,1558.7,13.97933794]
[1673893193670,4.25939305,1559.0,1558.7,13.97933794]
[1673893195556,9.68797678,1558.8,1558.7,0.11113794]
[1673893197023,11.68797678,1558.8,1558.7,0.11113794]
[1673893197284,18.69904977,1558.8,1558.7,0.11113794]
[1673893199464,19.18044977,1558.8,1558.7,0.11113794]
[1673893202040,20.13989284,1558.8,1558.7,0.11113794]
[1673893202267,28.58822871,1558.8,1558.7,0.11113794]
[1673893202477,27.3773187,1558.8,1558.7,0.11113794]
[1673893202835,28.58823373,1558.8,1558.7,0.11113794]
[1673893203204,27.3773187,1558.8,1558.7,0.11113794]
[1673893204836,25.59563977,1558.8,1558.7,0.11113794]
[1673893205202,27.37724465,1558.8,1558.7,0.11113794]
[1673893206546,28.58815199,1558.8,1558.7,0.11113794]
[1673893206738,27.37724465,1558.8,1558.7,0.11113794]
[1673893207690,19.18044977,1558.8,1558.7,0.11113794]
[1673893207998,12.76525977,1558.8,1558.7,0.11113794]
[1673893208565,19.18044977,1558.8,1558.7,0.11113794]
[1673893210311,3.75418678,1558.8,1558.7,1.14813794]
[1673893210669,0.4813,1558.9,1558.7,7.56373794]
[1673893210843,1.44074307,1559.0,1558.7,13.97933794]
[1673893211052,4.71352985,1559.0,1558.7,7.56373794]
[1673893212048,1.44074307,1559.0,1558.7,7.56373794]
[1673893212258,4.23222985,1558.9,1558.7,0.11113794]
[1673893212411,3.27278678,1558.8,1558.7,0.11113794]
[1673893216834,1.44074307,1558.9,1558.7,13.97933794]
[1673893217081,4.71352985,1558.9,1558.7,13.97933794]
[1673893217240,0.95944307,1558.9,1558.7,16.03563695]
[1673893217447,1.44074307,1559.0,1558.7,23.93023695]
[1673893217699,4.23222985,1559.0,1558.7,23.93023695]
[1673893217982,9.52604257,1559.1,1558.7,23.93023695]
[1673893218247,4.22992935,1559.1,1558.8,1.477]
[1673893218469,4.22992935,1559.1,1558.9,12.97692]
[1673893218821,4.22992935,1559.1,1558.8,7.89199]
[1673893219079,4.22992935,1559.1,1558.7,17.56023695]
[1673893219080,0.82328237,1559.0,1558.7,25.44783695]
[1673893219757,10.51043915,1559.0,1558.7,19.03223695]
[1673893220011,9.68715678,1559.0,1558.7,19.03223695]
[1673893220624,3.27278678,1559.0,1558.7,25.44783695]
[1673893220829,4.7071859,1559.0,1558.7,20.88253794]
[1673893221285,10.51175729,1558.9,1558.7,0.11113794]
[1673893221495,3.27278678,1558.8,1558.7,0.11113794]
[1673893221706,4.09690796,1558.8,1558.7,0.11113794]
[1673893221874,5.93302767,1558.8,1558.7,0.11113794]
[1673893224641,12.34821767,1558.8,1558.7,0.11113794]
[1673893225253,13.78261679,1558.8,1558.7,0.11113794]
[1673893225970,7.36742679,1558.8,1558.7,0.11113794]
[1673893226226,5.53130708,1558.8,1558.7,0.11113794]
[1673893226921,6.01270708,1558.8,1558.7,0.11113794]
[1673893227596,14.34033449,1558.8,1558.7,0.11113794]
[1673893227808,25.73631537,1558.8,1558.7,0.11113794]
[1673893228808,30.92363523,1558.8,1558.7,0.11113794]
[1673893229019,36.2783213,1558.8,1558.7,0.11113794]
[1673893234109,21.8109187,1558.8,1558.7,0.11113794]
[1673893234291,15.7466298,1558.8,1558.7,0.11113794]
[1673893234506,12.7466298,1558.8,1558.7,0.11113794]
[1673893234747,13.22557996,1558.8,1558.7,0.11113794]
[1673893234938,12.2652298,1558.8,1558.7,0.11113794]
[1673893235153,13.22558243,1558.8,1558.7,0.11113794]
[1673893235332,6.81039243,1558.8,1558.7,0.11113794]
[1673893236402,5.36978564,1558.8,1558.7,0.11113794]
[1673893237350,13.22558243,1558.8,1558.7,0.11113794]
[1673893237575,16.07136157,1558.8,1558.7,0.11113794]
[1673893238435,15.11100894,1558.8,1558.7,0.11113794]
[1673893238922,15.11100894,1558.8,1558.7,0.10909459]
[1673893240381,27.94138894,1558.8,1558.7,0.10909459]
[1673893240602,29.15283511,1558.8,1558.7,0.10909459]
[1673893241013,29.63327732,1558.8,1558.7,0.10909459]
[1673893242815,33.15226833,1558.8,1558.7,0.10909459]
[1673893243030,36.0284256,1558.8,1558.7,0.10909459]
[1673893243910,34.1073766,1558.8,1558.7,0.10909459]
[1673893244560,36.0283386,1558.8,1558.7,0.10909459]
[1673893244922,33.63358133,1558.8,1558.7,0.10909459]
[1673893245587,36.0283386,1558.8,1558.7,0.10909459]
[1673893246617,34.1073766,1558.8,1558.7,0.10909459]
[1673893246839,36.02809197,1558.8,1558.7,0.10909459]
[1673893248234,35.14586667,1558.8,1558.7,0.10909459]
[1673893248445,34.21810096,1558.8,1558.7,0.10909459]
[1673893248614,18.24295942,1558.8,1558.7,0.10909459]
[1673893248823,17.03151325,1558.8,1558.7,0.10909459]
[1673893249276,15.11079788,1558.8,1558.7,0.10909459]
[1673893252269,5.84982874,1558.8,1558.7,0.10909459]
[1673893252460,6.81009072,1558.8,1558.7,0.10909459]
[1673893254774,6.81017714,1558.8,1558.7,0.10909459]
[1673893255632,5.84982874,1558.8,1558.7,0.10909459]
[1673893256538,12.26501874,1558.8,1558.7,0.10909459]
[1673893257017,14.96733427,1558.8,1558.7,0.10909459]
[1673893257390,5.36981027,1558.8,1558.7,0.10909459]
[1673893257599,6.810206,1558.8,1558.7,0.10909459]
[1673893257810,5.36981027,1558.8,1558.7,0.10909459]
[1673893258464,6.81021781,1558.8,1558.7,0.10909459]
[1673893258784,5.84982874,1558.8,1558.7,0.10909459]
[1673893258957,8.60025827,1558.8,1558.7,0.10909459]
[1673893259654,10.52097364,1558.8,1558.7,0.10909459]
[1673893261167,5.84982874,1558.8,1558.7,0.10909459]
[1673893262442,10.28559028,1558.8,1558.7,0.10560523]
[1673893262680,16.70078028,1558.8,1558.7,0.10560523]
[1673893264666,18.62361684,1558.8,1558.7,0.10560523]
[1673893264854,18.62362004,1558.8,1558.7,0.10560523]
[1673893265064,19.96802202,1558.8,1558.7,0.10560523]
[1673893268012,13.22910385,1558.8,1558.7,0.10560523]
[1673893268385,14.67136402,1558.8,1558.7,0.10560523]
[1673893268550,8.25617402,1558.8,1558.7,0.10560523]
[1673893269103,5.85169318,1558.8,1558.7,0.10560523]
[1673893271109,7.77477402,1558.8,1558.7,0.10560523]
[1673893273098,5.85169318,1558.8,1558.7,0.10560523]
[1673893274856,2.5789064,1558.8,1558.7,0.10560523]
[1673893275062,2.09809503,1558.8,1558.7,20.02131397]
[1673893275278,2.09904063,1558.8,1558.7,21.49531397]
[1673893275523,0.31252505,1558.8,1558.7,21.49531397]
[1673893277618,1.27397385,1558.8,1558.7,21.49531397]
[1673893277808,0.31252505,1558.8,1558.7,21.49531397]
[1673893278903,0.30908011,1558.8,1558.7,21.49531397]
[1673893279261,1.27052891,1558.8,1558.7,7.19011397]
[1673893279476,2.09500476,1558.8,1558.7,6.52120523]
[1673893279906,2.71278908,1558.8,1558.7,0.10560523]
[1673893280176,2.57581613,1558.8,1558.7,0.10560523]
[1673893280326,5.84860291,1558.8,1558.7,0.10560523]
[1673893280778,7.77168375,1558.8,1558.7,0.10560523]
[1673893281015,9.43329329,1558.8,1558.7,0.10560523]
[1673893281383,7.99103312,1558.8,1558.7,0.10560523]
[1673893281786,22.22085526,1558.8,1558.7,0.10560523]
[1673893281926,25.70225526,1558.8,1558.7,0.10560523]
[1673893282268,25.70225526,1558.8,1558.6,0.16565372]
[1673893282269,23.30749799,1558.8,1558.6,0.16565372]
[1673893282479,24.0643887,1558.7,1558.6,0.16565372]
[1673893282843,23.35415653,1558.7,1558.6,0.16565372]
[1673893283059,24.06435684,1558.7,1558.6,0.16565372]
[1673893283301,22.14271036,1558.7,1558.6,0.16565372]
[1673893283641,25.14271036,1558.7,1558.6,0.16565372]
[1673893283849,26.35415653,1558.7,1558.6,0.16565372]
[1673893284165,23.9520586,1558.7,1558.6,0.16565372]
[1673893284318,26.3542222,1558.7,1558.6,0.16565372]
[1673893285326,32.7698222,1558.7,1558.6,0.16565372]
[1673893287379,34.2488222,1558.7,1558.6,0.16565372]
[1673893288395,36.16956838,1558.7,1558.6,0.16565372]
[1673893289337,26.83180457,1558.7,1558.6,0.16565372]
[1673893289549,25.39140478,1558.7,1558.6,0.16565372]
[1673893289716,27.3518222,1558.7,1558.6,0.16565372]
[1673893289916,32.55597603,1558.7,1558.6,0.16565372]
[1673893290124,33.7674222,1558.7,1558.6,0.16565372]
[1673893292251,35.68764845,1558.7,1558.6,0.16565372]
[1673893292463,35.68747992,1558.7,1558.6,0.16565372]
[1673893292885,33.28531632,1558.7,1558.6,0.16565372]
[1673893296315,35.68747992,1558.7,1558.6,0.16565372]
[1673893296579,33.7674222,1558.7,1558.6,0.16565372]
[1673893296956,35.68710623,1558.7,1558.6,0.16565372]
[1673893297414,1.04470455,1558.5,1558.4,0.12586577]
[1673893297737,25.00650988,1558.5,1558.4,0.12586577]
[1673893297957,31.14725224,1558.5,1558.4,0.12586577]
[1673893298318,25.6905626,1558.5,1558.4,0.12586577]
[1673893298689,18.93453754,1558.5,1558.4,0.12586577]
[1673893298899,4.31749133,1558.5,1558.4,0.12586577]
[1673893299689,6.0897889,1558.5,1558.4,0.12586577]
[1673893299896,5.27722169,1558.5,1558.4,0.12586577]
[1673893300113,11.69364169,1558.5,1558.4,0.12586577]
[1673893300317,12.50622737,1558.5,1558.4,0.08092809]
[1673893300951,11.54649711,1558.5,1558.4,0.08092809]
[1673893301160,18.92264983,1558.5,1558.4,0.08092809]
[1673893301371,21.60051567,1558.5,1558.4,0.08092809]
[1673893301615,11.46422983,1558.5,1558.4,0.08092809]
[1673893301806,0.00270455,1558.5,1558.4,0.08092809]
[1673893302423,3.27549133,1558.5,1558.4,0.08092809]
[1673893303117,9.69191133,1558.5,1558.4,0.08092809]
[1673893303483,3.27549133,1558.5,1558.4,0.08092809]
[1673893304529,11.46407105,1558.5,1558.4,0.08092809]
[1673893305296,0.00270455,1558.5,1558.4,0.22992276]
[1673893306320,0.00270455,1558.5,1558.4,13.06358276]
[1673893308785,0.00270455,1558.5,1558.4,15.06358276]
[1673893309170,0.00270455,1558.5,1558.4,22.95041276]
[1673893309366,0.00270455,1558.5,1558.4,26.46224376]
[1673893309733,0.00270455,1558.5,1558.4,14.53358276]
[1673893310348,0.00270455,1558.5,1558.4,16.53358276]
[1673893310783,0.00270455,1558.5,1558.4,22.95041276]
[1673893313645,0.00270455,1558.5,1558.4,20.95041276]
[1673893316366,0.00270455,1558.5,1558.4,19.48041276]
[1673893317433,0.00270455,1558.5,1558.4,13.06358276]
[1673893319155,0.00270455,1558.5,1558.4,0.08092809]
[1673893319581,0.00270455,1558.5,1558.4,6.49775809]
[1673893322456,0.00270455,1558.5,1558.4,12.91458809]
[1673893322858,3.27549133,1558.5,1558.4,0.08092809]
[1673893324215,3.27549133,1558.5,1558.4,0.03092809]
[1673893324425,6.89948735,1558.5,1558.4,0.03092809]
[1673893324641,6.89946498,1558.5,1558.4,0.03092809]
[1673893325687,26.62875317,1558.5,1558.4,0.03092809]
[1673893326306,28.5484372,1558.5,1558.4,0.03092809]
[1673893326628,29.0299372,1558.5,1558.4,0.03092809]
[1673893327085,27.11025317,1558.5,1558.4,0.03092809]
[1673893329467,26.62875317,1558.5,1558.4,0.03092809]
[1673893331483,28.54967395,1558.5,1558.4,0.03092809]
[1673893331712,28.31322157,1558.5,1558.4,0.03092809]
[1673893332067,22.13324502,1558.5,1558.4,0.03092809]
[1673893332535,20.21356099,1558.5,1558.4,0.03092809]
[1673893332903,22.13324502,1558.5,1558.4,0.03092809]
[1673893333427,20.21356099,1558.5,1558.4,0.03092809]
[1673893335529,21.45256099,1558.5,1558.4,0.03092809]
[1673893335747,29.78866502,1558.5,1558.4,0.03092809]
[1673893335894,29.07352391,1558.5,1558.4,0.03092809]
[1673893336790,30.99320794,1558.5,1558.4,0.03092809]
[1673893337385,24.57678794,1558.5,1558.4,0.03092809]
[1673893337625,21.45256099,1558.5,1558.4,0.03092809]
[1673893338171,22.41293115,1558.5,1558.4,0.03092809]
[1673893338469,22.41299195,1558.5,1558.4,0.03092809]
[1673893338949,5.04944556,1558.5,1558.4,0.03092809]
[1673893339159,5.04916713,1558.5,1558.4,0.03092809]
[1673893339717,4.23592229,1558.5,1558.4,0.03092809]
[1673893339889,5.04916897,1558.5,1558.4,0.03092809]
[1673893340310,4.23321774,1558.5,1558.4,0.03092809]
[1673893340525,3.27278678,1558.5,1558.4,0.03092809]
[1673893340897,4.23321774,1558.5,1558.4,0.03092809]
[1673893341090,5.04631392,1558.5,1558.4,0.03092809]
[1673893341419,5.04636576,1558.5,1558.4,0.03092809]
[1673893342153,5.04636488,1558.5,1558.4,0.03092809]
[1673893344305,4.23321774,1558.5,1558.4,0.03092809]
[1673893344559,3.27278678,1558.5,1558.4,0.03092809]
[1673893346410,2.88281733,1558.6,1558.4,0.03092809]
[1673893346729,23.90224815,1558.7,1558.5,2.465]
[1673893346730,0.96793216,1558.7,1558.5,2.465]
[1673893346933,0.0075012,1558.7,1558.6,12.82953358]
[1673893347216,0.0075012,1558.7,1558.6,6.41352358]
[1673893347366,0.0075012,1558.7,1558.6,18.34136458]
[1673893347580,0.0075012,1558.7,1558.6,20.81710404]
[1673893348137,0.0075012,1558.7,1558.6,23.81710404]
[1673893348622,0.0075012,1558.7,1558.6,20.30527304]
[1673893348834,0.0075012,1558.7,1558.6,11.88926304]
[1673893349080,0.31863736,1558.7,1558.6,11.88926304]
[1673893349301,0.31863736,1558.7,1558.6,14.36126304]
[1673893351932,0.31863736,1558.7,1558.6,7.94773946]
[1673893352081,0.31863736,1558.7,1558.6,5.472]
[1673893352296,0.31863736,1558.7,1558.6,18.30402]
[1673893352506,0.31863736,1558.7,1558.6,18.3155133]
[1673893352979,0.31863736,1558.7,1558.6,24.7315233]
[1673893353189,0.31863736,1558.7,1558.6,18.3155133]
[1673893353365,0.31863736,1558.7,1558.6,21.58926763]
[1673893355050,0.31863736,1558.7,1558.6,15.17325763]
[1673893355263,0.31863736,1558.7,1558.6,11.8995033]
[1673893355676,0.31863736,1558.7,1558.6,9.4275033]
[1673893356494,0.31863736,1558.7,1558.5,14.42203]
[1673893358021,0.31863736,1558.7,1558.5,20.83845]
[1673893358650,0.31863736,1558.7,1558.5,27.25487]
[1673893359233,0.31863736,1558.7,1558.5,31.22009981]
[1673893362382,0.31863736,1558.7,1558.5,27.25487]
[1673893363025,0.0075012,1558.7,1558.5,27.25487]
[1673893367178,0.0075012,1558.7,1558.5,27.60147]
[1673893369589,0.0075012,1558.7,1558.6,21.24803]
[1673893371139,0.0075012,1558.7,1558.6,29.239861]
[1673893371357,0.0075012,1558.7,1558.6,35.46492648]
[1673893372002,0.00486474,1558.7,1558.6,34.6958101]
[1673893372422,0.00486474,1558.7,1558.6,31.1839791]
[1673893373479,0.00486474,1558.7,1558.6,30.9539791]
[1673893373658,0.00486474,1558.7,1558.6,19.24803]
[1673893373871,1.04686474,1558.7,1558.6,6.41601]
[1673893374532,1.04686474,1558.7,1558.5,21.18505]
[1673893374702,1.04686474,1558.7,1558.5,13.17905]
[1673893375228,1.04686474,1558.7,1558.5,6.76263]
[1673893375635,2.0072957,1558.7,1558.5,6.76263]
[1673893376263,1.04686474,1558.7,1558.5,6.76263]
[1673893377228,2.0072957,1558.7,1558.5,6.76263]
[1673893377454,0.00486474,1558.7,1558.5,13.17905]
[1673893377665,0.00486474,1558.7,1558.5,21.59547]
[1673893380201,0.00486474,1558.7,1558.5,19.59547]
[1673893380525,0.00486474,1558.7,1558.5,22.87095981]
[1673893381255,0.00486474,1558.7,1558.6,21.24803]
[1673893384936,0.00486474,1558.7,1558.6,22.01806957]
[1673893385540,0.00486474,1558.7,1558.6,27.67171516]
[1673893385766,0.00486474,1558.7,1558.6,36.52819051]
[1673893387345,0.00486474,1558.7,1558.6,33.02017883]
[1673893388599,0.00486474,1558.7,1558.6,32.06753324]
[1673893389293,0.00486474,1558.7,1558.6,33.02017883]
[1673893389978,0.00486474,1558.7,1558.6,32.06753324]
[1673893392063,0.00486474,1558.7,1558.6,33.02017883]
[1673893392654,0.00486474,1558.7,1558.6,36.53062005]
[1673893392986,0.00486474,1558.7,1558.6,46.57440683]
[1673893393348,0.96043096,1559.1,1558.6,55.47859213]
[1673893393498,0.96043096,1559.2,1559.0,1.471]
[1673893393712,3.22620733,1559.3,1559.1,19.24185]
[1673893393967,0.06897413,1559.3,1559.2,15.26392455]
[1673893394179,0.0730621,1559.5,1559.3,8.771]
[1673893394510,0.0730621,1559.5,1559.4,36.85387778]
[1673893394706,0.0730621,1559.5,1559.4,39.85387778]
[1673893395773,0.0730621,1559.5,1559.4,40.38673029]
[1673893396811,0.0730621,1559.5,1559.4,46.79945029]
[1673893397615,0.0730621,1559.5,1559.4,40.02845029]
[1673893397828,0.0730621,1559.5,1559.4,46.79945029]
[1673893398256,0.0730621,1559.5,1559.4,46.8109377]
[1673893400375,0.0730621,1559.5,1559.4,35.99525419]
[1673893400595,0.0730621,1559.5,1559.4,34.52225419]
[1673893402502,0.0730621,1559.5,1559.4,41.29325419]
[1673893403398,0.0730621,1559.5,1559.4,34.52225419]
[1673893403610,0.0730621,1559.5,1559.4,29.76946741]
[1673893405517,0.0730621,1559.5,1559.4,28.65088]
[1673893409109,0.0730621,1559.5,1559.4,25.65088]
[1673893411073,0.0730621,1559.5,1559.4,19.23816]
[1673893412438,0.0730621,1559.5,1559.4,12.82544]
[1673893413030,0.0730621,1559.5,1559.4,6.41272]
[1673893413380,0.0730621,1559.5,1559.3,12.82594]
[1673893413593,3.27278678,1559.4,1559.3,6.41291]
[1673893413804,2.54670806,1559.2,1558.9,30.13]
[1673893414052,3.27278678,1559.1,1558.7,0.00480637]
[1673893414273,6.75408678,1559.1,1558.7,6.42039637]
[1673893414588,6.75408678,1559.1,1558.7,0.00480637]
[1673893414589,3.27278678,1559.0,1558.7,0.00480637]
[1673893414804,3.27278678,1558.9,1558.7,0.00480637]
[1673893414964,3.75408678,1558.9,1558.7,0.00480637]
[1673893415797,5.22608678,1558.9,1558.7,0.00480637]
[1673893418286,5.22310408,1558.9,1558.7,0.00480637]
[1673893419965,0.4813,1558.9,1558.7,0.00480637]
[1673893420198,0.4813,1559.1,1558.7,19.25158637]
[1673893422965,1.468,1559.0,1558.7,19.25158637]
[1673893423170,1.468,1559.0,1558.7,12.83598637]
[1673893424675,11.15525678,1559.0,1558.7,6.42038637]
[1673893424853,1.11552568,1558.9,1558.7,6.42038637]
[1673893425846,2.58752568,1558.9,1558.7,6.42038637]
[1673893427266,1.472,1558.9,1558.7,6.42038637]
[1673893428474,4.74478678,1558.9,1558.7,0.00480637]
[1673893428627,4.74478678,1558.9,1558.7,6.42038637]
[1673893430206,5.22608678,1558.9,1558.7,6.42038637]
[1673893430472,4.74478678,1558.9,1558.7,6.42038637]
[1673893431149,1.472,1558.9,1558.7,19.25158637]
[1673893431310,1.9613,1559.0,1558.7,21.83166782]
[1673893431528,5.23408678,1559.0,1558.7,21.83166782]
[1673893431717,4.75278678,1559.0,1558.7,21.83166782]
[1673893431934,4.75278678,1559.0,1558.7,19.25158637]
[1673893432105,1.48,1559.0,1558.7,19.25158637]
[1673893432469,4.50800806,1559.2,1558.7,19.25158637]
[1673893432693,3.27278678,1559.1,1558.7,19.25158637]
[1673893434865,4.50800806,1559.2,1558.7,19.25158637]
[1673893435095,4.02670806,1559.2,1558.8,3.92515864]
[1673893435409,4.02670806,1559.2,1558.9,19.24407]
[1673893437613,1.48,1559.2,1558.9,19.24407]
[1673893439941,2.44043096,1559.2,1558.9,19.24407]
[1673893441096,1.48,1559.2,1558.9,19.24407]
[1673893441831,2.44043096,1559.2,1558.9,19.24407]
[1673893443036,2.44043096,1559.2,1558.9,22.00249686]
[1673893443247,1.94934957,1559.3,1558.9,22.00249686]
[1673893443248,4.38578053,1559.3,1558.9,22.00249686]
[1673893443726,1.7127329,1559.2,1558.9,22.00249686]
[1673893444250,2.43643096,1559.3,1558.9,25.50846332]
[1673893444460,2.43643096,1559.3,1559.2,19.24373829]
[1673893444615,3.18867138,1559.3,1559.2,19.24373829]
[1673893445087,1.476,1559.3,1559.2,19.24373829]
[1673893445305,2.44043096,1559.4,1559.2,19.24373829]
[1673893445496,2.44043096,1559.4,1559.3,1.92437383]
[1673893445497,1.48,1559.4,1559.3,1.92437383]
[1673893445668,1.71291134,1559.4,1559.3,21.16376383]
[1673893446655,2.47447943,1559.5,1559.3,21.16376383]
[1673893446843,1.71290006,1559.4,1559.3,21.16376383]
[1673893447062,2.47447943,1559.5,1559.3,21.16376383]
[1673893447279,1.71291398,1559.4,1559.3,21.16376383]
[1673893448452,1.03349306,1559.5,1559.3,21.16376383]
[1673893448758,1.03349306,1559.5,1559.4,14.94181638]
[1673893448980,1.7861496,1559.5,1559.4,14.94181638]
[1673893449354,1.7861496,1559.5,1559.4,14.9383659]
[1673893449764,1.7861496,1559.5,1559.4,8.5256459]
[1673893449765,2.26670501,1559.5,1559.4,8.5256459]
[1673893450039,2.26670501,1559.5,1559.4,6.41272]
[1673893450194,2.47306981,1559.5,1559.4,6.41272]
[1673893450406,3.22572635,1559.5,1559.4,12.82544]
[1673893451328,3.22572635,1559.5,1559.4,19.23816]
[1673893451442,1.78473998,1559.5,1559.4,19.23816]
[1673893451651,3.22572635,1559.5,1559.4,21.80325]
[1673893451909,1.78473998,1559.5,1559.4,21.80325]
[1673893452984,3.22572635,1559.5,1559.4,21.80325]
[1673893453124,3.22576326,1559.5,1559.4,19.23816]
[1673893453541,1.78477689,1559.5,1559.4,19.23816]
[1673893454026,1.78477689,1559.5,1559.4,6.41272]
[1673893455487,0.0730621,1559.5,1559.4,19.23816]
[1673893456660,0.0730621,1559.5,1559.4,27.2282642]
[1673893456801,0.0730621,1559.5,1559.4,31.26946462]
[1673893457643,0.0730621,1559.5,1559.4,31.26808976]
[1673893458108,0.0730621,1559.5,1559.4,27.75936042]
[1673893459443,0.0730621,1559.5,1559.4,31.21775336]
[1673893460703,0.0730621,1559.5,1559.4,31.44775336]
[1673893461774,0.0730621,1559.5,1559.4,27.93936042]
[1673893462810,0.0730621,1559.5,1559.4,31.44843951]
[1673893463121,0.0730621,1559.5,1559.4,27.93936042]
[1673893467891,0.0730621,1559.5,1559.4,31.44808803]
[1673893469749,0.0730621,1559.5,1559.4,41.49187481]
[1673893470069,0.0730621,1559.5,1559.4,42.02472732]
[1673893471249,0.0730621,1559.5,1559.4,35.25372732]
[1673893471561,0.0730621,1559.5,1559.4,31.44808803]
[1673893472171,0.0730621,1559.5,1559.4,27.93936042]
[1673893472383,0.0730621,1559.5,1559.4,31.44875893]
[1673893472599,0.0730621,1559.5,1559.4,31.44771642]
[1673893473147,0.0730621,1559.5,1559.4,27.70936042]
[1673893475678,0.0730621,1559.5,1559.4,27.70936042]
[1673893477842,0.0730621,1559.5,1559.4,23.66816]
[1673893482394,0.0730621,1559.5,1559.4,24.20101251]
[1673893482971,0.0696942,1559.5,1559.4,24.20101251]
[1673893483431,0.0696942,1559.5,1559.4,23.66816]
[1673893486618,0.0696942,1559.5,1559.4,27.17686182]
[1673893486775,0.0696942,1559.5,1559.4,30.71603054]
[1673893487125,0.0696942,1559.5,1559.4,42.93558481]
[1673893487349,0.07522991,1559.6,1559.5,1.10845752]
[1673893487656,0.07522991,1559.6,1559.5,31.69699081]
[1673893487985,0.07522991,1559.6,1559.5,32.22984332]
[1673893488125,0.07522991,1559.6,1559.5,43.58814332]
[1673893488759,0.07522991,1559.6,1559.5,47.09648837]
[1673893489242,0.07522991,1559.6,1559.5,43.58814332]
[1673893489549,0.07522991,1559.6,1559.5,47.09649021]
[1673893489770,0.07522991,1559.6,1559.5,43.58814332]
[1673893490071,0.07522991,1559.6,1559.5,47.09997432]
[1673893490441,0.07522991,1559.6,1559.5,45.02716126]
[1673893490651,0.07522991,1559.6,1559.5,47.09997432]
[1673893490869,0.07522991,1559.6,1559.5,43.58814332]
[1673893491440,0.07522991,1559.6,1559.5,47.09997432]
[1673893492464,0.07522991,1559.6,1559.5,36.81714332]
[1673893492696,0.07522991,1559.6,1559.5,42.62879803]
[1673893492847,0.07522991,1559.6,1559.5,35.62779803]
[1673893493061,0.07522991,1559.6,1559.5,32.35501125]
[1673893493391,0.07522991,1559.6,1559.5,31.82215874]
[1673893493798,0.07522991,1559.6,1559.5,29.12480585]
[1673893494007,0.07522991,1559.6,1559.5,34.70368752]
[1673893494260,1.11722991,1559.6,1559.5,27.25437752]
[1673893494448,0.07522991,1559.6,1559.5,27.25437752]
[1673893495063,0.07522991,1559.6,1559.5,28.088519]
[1673893495693,0.07522991,1559.6,1559.5,27.25437752]
[1673893497458,0.07522991,1559.6,1559.5,31.98492267]
[1673893497761,0.07522991,1559.6,1559.5,32.81903043]
[1673893498379,0.07522991,1559.6,1559.5,28.08848528]
[1673893498771,0.07522991,1559.6,1559.5,27.25437752]
[1673893499010,0.07522991,1559.6,1559.5,28.08838531]
[1673893499352,1.11722991,1559.6,1559.5,27.25437752]
[1673893499654,2.07628816,1559.6,1559.5,0.07145752]
[1673893499964,3.31125457,1559.6,1559.5,0.07145752]
[1673893500351,3.97844707,1559.6,1559.5,0.07145752]
[1673893500564,4.46037519,1559.6,1559.5,0.07145752]
[1673893501541,5.42089785,1559.6,1559.5,0.07145752]
[1673893502486,4.75370535,1559.6,1559.5,6.48376752]
[1673893503223,2.27071898,1559.6,1559.5,6.48376752]
[1673893503394,2.27071898,1559.6,1559.5,12.89607752]
[1673893505119,1.51685257,1559.6,1559.5,12.89607752]
[1673893505428,2.27075967,1559.6,1559.5,12.89607752]
[1673893505906,1.78965967,1559.6,1559.5,12.89607752]
[1673893506268,0.07522991,1559.6,1559.5,12.89607752]
[1673893506633,0.07522991,1559.6,1559.5,19.30838752]
[1673893509119,1.03575257,1559.6,1559.5,19.30838752]
[1673893509258,1.78950702,1559.6,1559.5,12.89607752]
[1673893509464,3.31419847,1559.6,1559.5,6.44184852]
[1673893509679,4.27404923,1559.6,1559.5,6.44184852]
[1673893509922,2.83306286,1559.6,1559.5,6.44184852]
[1673893510501,4.27404923,1559.6,1559.5,6.44184852]
[1673893511085,2.83306286,1559.6,1559.5,6.44184852]
[1673893511634,2.83306286,1559.6,1559.5,12.85415852]
[1673893512517,4.27404923,1559.6,1559.5,12.85415852]
[1673893513058,2.26993512,1559.6,1559.5,12.85415852]
[1673893513271,0.07522991,1559.6,1559.5,12.85415852]
[1673893513466,0.07522991,1559.6,1559.5,19.26646852]
[1673893516162,0.55632991,1559.6,1559.5,19.26646852]
[1673893516371,0.07522991,1559.6,1559.5,19.26646852]
[1673893517248,0.07522991,1559.6,1559.5,21.95624467]
[1673893517701,0.07522991,1559.6,1559.5,22.78816749]
[1673893517923,0.07522991,1559.6,1559.5,30.25934378]
[1673893518252,0.07522991,1559.6,1559.5,42.05489603]
[1673893518398,0.07522991,1559.6,1559.5,42.28489603]
[1673893519986,0.07522991,1559.6,1559.5,40.21208297]
[1673893520192,0.07522991,1559.6,1559.5,42.28489603]
[1673893520866,0.07522991,1559.6,1559.5,38.77306503]
[1673893521639,0.07522991,1559.6,1559.5,38.24021252]
[1673893521858,0.07522991,1559.6,1559.5,40.79269823]
[1673893522961,0.07522991,1559.6,1559.5,37.28086723]
[1673893523433,0.07522991,1559.6,1559.5,40.79269823]
[1673893523605,0.07522991,1559.6,1559.5,25.78816749]
[1673893523825,0.07522991,1559.6,1559.5,23.09839134]
[1673893525955,0.07522991,1559.6,1559.5,24.31567338]
[1673893526143,0.07522991,1559.6,1559.5,25.27501867]
[1673893526919,0.07522991,1559.6,1559.5,24.31567338]
[1673893527434,0.07522991,1559.6,1559.5,25.27501867]
[1673893527584,0.07522991,1559.6,1559.5,29.26476033]
[1673893528007,0.07522991,1559.6,1559.5,28.30541504]
[1673893530488,0.07522991,1559.6,1559.5,27.088133]
[1673893531239,0.07522991,1559.6,1559.5,24.31515118]
[1673893531453,0.07522991,1559.6,1559.5,23.09839134]
[1673893532886,0.07304399,1559.6,1559.5,23.09839134]
[1673893533096,0.37748402,1559.6,1559.5,23.09839134]
[1673893536445,0.37748402,1559.6,1559.5,24.05773663]
[1673893536657,0.37748402,1559.6,1559.5,27.37032607]
[1673893537008,0.37748402,1559.6,1559.5,27.34078755]
[1673893537182,0.37748402,1559.6,1559.5,28.55754739]
[1673893538080,0.37748402,1559.6,1559.5,29.99656533]
[1673893538227,0.08533992,1559.8,1559.5,37.88352782]
[1673893538438,0.08533992,1559.8,1559.7,28.43829693]
[1673893538707,0.08533992,1559.8,1559.7,42.44338944]
[1673893539076,0.08533992,1559.8,1559.7,41.2266296]
[1673893539496,0.08533992,1559.8,1559.7,42.44249911]
[1673893539751,0.08533992,1559.8,1559.7,45.95437716]
[1673893539964,0.08533992,1559.8,1559.7,52.13970585]
[1673893540136,0.08533992,1559.8,1559.7,50.92378929]
[1673893540558,0.08533992,1559.8,1559.7,47.41195829]
[1673893540779,0.08533992,1559.8,1559.7,52.13970623]
[1673893541753,0.08533992,1559.8,1559.7,48.62787523]
[1673893541904,0.08533992,1559.8,1559.7,47.41195829]
[1673893543012,0.08533992,1559.8,1559.7,50.92378929]
[1673893543168,0.08533992,1559.8,1559.7,47.41195829]
[1673893544547,0.08533992,1559.8,1559.7,50.92378929]
[1673893544977,0.08533992,1559.8,1559.7,48.6274233]